[Event "Late-Titled-Tuesday-Blitz-June-18-2024"]
[Site "Chess.com"]
[Date "2024.06.18"]
[Round "3"]
[White "ChessSG1"]
[Black "LUISMIGUELOV"]
[Result "0-1"]
[WhiteElo "2474"]
[BlackElo "2200"]
[TimeControl "180+1"]
[EndTime "14:29:01 PDT"]
[Termination "LUISMIGUELOV won by checkmate"]

1. c4 {[%clk 0:03:00.9]} 1... e6 {[%clk 0:02:48.3]} 2. g3 {[%clk 0:03:00.9]}
2... c6 {[%clk 0:02:47.2]} 3. Bg2 {[%clk 0:03:00.9]} 3... d5 {[%clk 0:02:47.7]}
4. Nf3 {[%clk 0:03:01.3]} 4... Nf6 {[%clk 0:02:47.7]} 5. O-O {[%clk 0:03:00.5]}
5... Bd6 {[%clk 0:02:46.6]} 6. b3 {[%clk 0:02:58.1]} 6... O-O {[%clk 0:02:45.9]}
7. Bb2 {[%clk 0:02:56.9]} 7... Nbd7 {[%clk 0:02:45.8]} 8. d4 {[%clk 0:02:57.4]}
8... b6 {[%clk 0:02:41.6]} 9. Nbd2 {[%clk 0:02:57.3]} 9... a5 {[%clk 0:02:41.5]}
10. a3 {[%clk 0:02:50.3]} 10... Ba6 {[%clk 0:02:41.2]} 11. Ne5 {[%clk
0:02:44.3]} 11... Qc7 {[%clk 0:02:39]} 12. Rc1 {[%clk 0:02:41.6]} 12... Nxe5
{[%clk 0:02:37.1]} 13. dxe5 {[%clk 0:02:40.4]} 13... Bxe5 {[%clk 0:02:37]} 14.
Bxe5 {[%clk 0:02:33]} 14... Qxe5 {[%clk 0:02:36.8]} 15. Nf3 {[%clk 0:02:32.6]}
15... Qh5 {[%clk 0:02:34.1]} 16. cxd5 {[%clk 0:02:29.2]} 16... cxd5 {[%clk
0:02:33.4]} 17. h3 {[%clk 0:02:25.8]} 17... Rac8 {[%clk 0:02:30.6]} 18. g4
{[%clk 0:02:17.9]} 18... Qg6 {[%clk 0:02:29]} 19. Ne5 {[%clk 0:02:11.3]} 19...
Qg5 {[%clk 0:02:21.2]} 20. f4 {[%clk 0:02:09.8]} 20... Qh4 {[%clk 0:02:19.7]}
21. Nc6 {[%clk 0:01:41]} 21... Ne4 {[%clk 0:02:06.6]} 22. g5 {[%clk 0:01:35.3]}
22... Kh8 {[%clk 0:02:03]} 23. Qd4 {[%clk 0:01:22.6]} 23... Ng3 {[%clk
0:01:57.6]} 24. Rfe1 {[%clk 0:01:00.7]} 24... Nxe2+ {[%clk 0:01:50.9]} 25. Rxe2
{[%clk 0:01:01]} 25... Bxe2 {[%clk 0:01:49.7]} 26. Qxb6 {[%clk 0:00:44]} 26...
Qxf4 {[%clk 0:01:40.3]} 27. Re1 {[%clk 0:00:43.9]} 27... Bf3 {[%clk 0:01:28.5]}
28. Rf1 {[%clk 0:00:42.6]} 28... Qd6 {[%clk 0:01:27.3]} 29. Rxf3 {[%clk
0:00:34.7]} 29... Qxc6 {[%clk 0:01:25.6]} 30. Qxa5 {[%clk 0:00:35.1]} 30... Qc1+
{[%clk 0:01:24.1]} 31. Kh2 {[%clk 0:00:28.8]} 31... Qxg5 {[%clk 0:01:23]} 32.
Rf2 {[%clk 0:00:15]} 32... Qe5+ {[%clk 0:01:21.9]} 33. Kg1 {[%clk 0:00:12.3]}
33... Rc1+ {[%clk 0:01:20.9]} 34. Bf1 {[%clk 0:00:12.8]} 34... Qg3+ {[%clk
0:01:16.5]} 35. Rg2 {[%clk 0:00:13.1]} 35... Qe3+ {[%clk 0:01:14.7]} 36. Rf2
{[%clk 0:00:13.6]} 36... Rfc8 {[%clk 0:01:12.9]} 37. Qb4 {[%clk 0:00:12.1]}
37... Qg3+ {[%clk 0:01:09.1]} 38. Rg2 {[%clk 0:00:12]} 38... Qe3+ {[%clk
0:01:04.4]} 39. Rf2 {[%clk 0:00:10]} 39... Kg8 {[%clk 0:01:02]} 40. Qe7 {[%clk
0:00:09.1]} 40... Qg3+ {[%clk 0:01:00.3]} 41. Rg2 {[%clk 0:00:09.3]} 41... Rxf1+
{[%clk 0:00:59.8]} 42. Kxf1 {[%clk 0:00:07.8]} 42... Rc1+ {[%clk 0:00:59.9]} 43.
Ke2 {[%clk 0:00:08.5]} 43... Qxg2+ {[%clk 0:00:59.9]} 44. Kd3 {[%clk 0:00:08.9]}
44... Qe4+ {[%clk 0:00:58.7]} 45. Kd2 {[%clk 0:00:09.1]} 45... Rc2+ {[%clk
0:00:58.6]} 46. Kd1 {[%clk 0:00:09.6]} 46... Qe2# {[%clk 0:00:58.7]} 0-1

[Event "Late-Titled-Tuesday-Blitz-June-18-2024"]
[Site "Chess.com"]
[Date "2024.06.18"]
[Round "3"]
[White "rdarruda"]
[Black "Viktor_Poddubnyi"]
[Result "1-0"]
[WhiteElo "2563"]
[BlackElo "2338"]
[TimeControl "180+1"]
[EndTime "14:29:06 PDT"]
[Termination "rdarruda won on time"]

1. d4 {[%clk 0:02:53.1]} 1... g6 {[%clk 0:03:00.2]} 2. e4 {[%clk 0:02:52.5]}
2... Bg7 {[%clk 0:03:00]} 3. Nc3 {[%clk 0:02:52.6]} 3... d6 {[%clk 0:03:00.5]}
4. Nf3 {[%clk 0:02:52.5]} 4... Nf6 {[%clk 0:02:59.1]} 5. Bg5 {[%clk 0:02:52.3]}
5... c5 {[%clk 0:02:55.9]} 6. Qd2 {[%clk 0:02:48]} 6... cxd4 {[%clk 0:02:54.6]}
7. Nxd4 {[%clk 0:02:48.9]} 7... Nc6 {[%clk 0:02:54.8]} 8. Nb3 {[%clk 0:02:28]}
8... a5 {[%clk 0:02:42.4]} 9. a4 {[%clk 0:02:27.1]} 9... Be6 {[%clk 0:02:29.4]}
10. Bh6 {[%clk 0:02:21.3]} 10... Bxh6 {[%clk 0:02:19.5]} 11. Qxh6 {[%clk
0:02:22.2]} 11... Qb6 {[%clk 0:02:13.2]} 12. Bb5 {[%clk 0:02:21]} 12... Qxf2+
{[%clk 0:02:09.9]} 13. Kxf2 {[%clk 0:02:17]} 13... Ng4+ {[%clk 0:02:09.2]} 14.
Ke2 {[%clk 0:02:12.5]} 14... Nxh6 {[%clk 0:02:10.1]} 15. Nd4 {[%clk 0:02:11.1]}
15... Bd7 {[%clk 0:02:09]} 16. Nxc6 {[%clk 0:02:10.4]} 16... Bxc6 {[%clk
0:02:05.8]} 17. h3 {[%clk 0:02:08.3]} 17... Ng8 {[%clk 0:01:59.6]} 18. Rad1
{[%clk 0:02:07.4]} 18... Nf6 {[%clk 0:01:58.5]} 19. Rhf1 {[%clk 0:02:07.5]}
19... O-O {[%clk 0:01:50.7]} 20. Ke3 {[%clk 0:02:02.3]} 20... Rac8 {[%clk
0:01:44.8]} 21. Rd4 {[%clk 0:01:59.4]} 21... Bxb5 {[%clk 0:01:34.5]} 22. axb5
{[%clk 0:01:58]} 22... Rc5 {[%clk 0:01:13.8]} 23. Kd3 {[%clk 0:01:44.2]} 23...
Rfc8 {[%clk 0:01:04.9]} 24. Rf2 {[%clk 0:01:39.2]} 24... Nd7 {[%clk 0:00:37.4]}
25. Rd5 {[%clk 0:01:14.1]} 25... Ne5+ {[%clk 0:00:33.4]} 26. Kd4 {[%clk
0:01:14.2]} 26... Rc4+ {[%clk 0:00:28.7]} 27. Ke3 {[%clk 0:01:14]} 27... Rxc3+
{[%clk 0:00:21.9]} 28. bxc3 {[%clk 0:01:12.3]} 28... Rxc3+ {[%clk 0:00:22.4]}
29. Kd2 {[%clk 0:01:10.9]} 29... Ra3 {[%clk 0:00:16.4]} 30. Rd4 {[%clk
0:01:09.5]} 30... Kf8 {[%clk 0:00:14.5]} 31. Rf1 {[%clk 0:01:08.8]} 31... Ke8
{[%clk 0:00:12.3]} 32. Rb1 {[%clk 0:01:08]} 32... Rg3 {[%clk 0:00:09.6]} 33. Rb3
{[%clk 0:00:53.4]} 33... Rxg2+ {[%clk 0:00:08.2]} 34. Kc1 {[%clk 0:00:54.1]}
34... h5 {[%clk 0:00:05.1]} 35. Ra3 {[%clk 0:00:54]} 35... b6 {[%clk 0:00:04.9]}
36. Rc3 {[%clk 0:00:54.6]} 36... h4 {[%clk 0:00:02.3]} 37. Rc7 {[%clk
0:00:51.4]} 1-0

[Event "Late-Titled-Tuesday-Blitz-June-18-2024"]
[Site "Chess.com"]
[Date "2024.06.18"]
[Round "3"]
[White "kosmeg"]
[Black "Bugcrusher"]
[Result "0-1"]
[WhiteElo "2564"]
[BlackElo "2396"]
[TimeControl "180+1"]
[EndTime "14:29:11 PDT"]
[Termination "Bugcrusher won on time"]

1. Nf3 {[%clk 0:03:00.9]} 1... d5 {[%clk 0:02:56.5]} 2. g3 {[%clk 0:02:59.9]}
2... Nd7 {[%clk 0:02:54.9]} 3. d4 {[%clk 0:02:57.7]} 3... Nb6 {[%clk 0:02:54.9]}
4. Bg2 {[%clk 0:02:47.5]} 4... Bf5 {[%clk 0:02:52.9]} 5. O-O {[%clk 0:02:40.5]}
5... e6 {[%clk 0:02:48.8]} 6. a4 {[%clk 0:02:32.6]} 6... a5 {[%clk 0:02:43.6]}
7. Nc3 {[%clk 0:02:26.2]} 7... h6 {[%clk 0:02:41]} 8. Ne5 {[%clk 0:02:23.8]}
8... Nf6 {[%clk 0:02:38.6]} 9. Re1 {[%clk 0:02:12.8]} 9... Be7 {[%clk
0:02:37.6]} 10. f3 {[%clk 0:02:08.3]} 10... O-O {[%clk 0:02:35.7]} 11. e4 {[%clk
0:02:08.6]} 11... Bh7 {[%clk 0:02:30.6]} 12. Be3 {[%clk 0:02:05.4]} 12... Rc8
{[%clk 0:02:15.4]} 13. Nd3 {[%clk 0:01:59.8]} 13... Nfd7 {[%clk 0:01:53.4]} 14.
Bf2 {[%clk 0:01:42.5]} 14... c5 {[%clk 0:01:51.1]} 15. dxc5 {[%clk 0:01:35]}
15... Nxc5 {[%clk 0:01:50.7]} 16. Nb5 {[%clk 0:01:32.5]} 16... dxe4 {[%clk
0:01:44.6]} 17. Nxc5 {[%clk 0:01:31.7]} 17... Bxc5 {[%clk 0:01:42.8]} 18. Bxc5
{[%clk 0:01:26.4]} 18... Rxc5 {[%clk 0:01:42.8]} 19. fxe4 {[%clk 0:01:13.7]}
19... Nxa4 {[%clk 0:01:28.6]} 20. Rxa4 {[%clk 0:00:33.8]} 20... Rxb5 {[%clk
0:01:27.5]} 21. Rd4 {[%clk 0:00:34]} 21... Qb6 {[%clk 0:01:25.7]} 22. Kh1 {[%clk
0:00:32]} 22... Rxb2 {[%clk 0:01:24.3]} 23. e5 {[%clk 0:00:32.4]} 23... Rxc2
{[%clk 0:01:20]} 24. Rd6 {[%clk 0:00:27.9]} 24... Qb2 {[%clk 0:01:17.7]} 25. Qf3
{[%clk 0:00:24.3]} 25... Rc1 {[%clk 0:01:12.8]} 26. Qe3 {[%clk 0:00:18.4]} 26...
Rxe1+ {[%clk 0:01:10.6]} 27. Qxe1 {[%clk 0:00:19.3]} 27... Rc8 {[%clk
0:01:07.2]} 28. Rd1 {[%clk 0:00:17.3]} 28... Bg6 {[%clk 0:01:04.4]} 29. Bf3
{[%clk 0:00:16.1]} 29... Rc2 {[%clk 0:01:03.2]} 30. Rd8+ {[%clk 0:00:14.4]}
30... Kh7 {[%clk 0:01:02.7]} 31. h4 {[%clk 0:00:15.3]} 31... Rc1 {[%clk
0:00:58.9]} 32. Rd1 {[%clk 0:00:14.8]} 32... Rxd1 {[%clk 0:00:58.2]} 33. Qxd1
{[%clk 0:00:15.7]} 33... a4 {[%clk 0:00:57]} 34. h5 {[%clk 0:00:15.4]} 34... Bc2
{[%clk 0:00:52.3]} 35. Qd7 {[%clk 0:00:11]} 35... a3 {[%clk 0:00:45.7]} 36. Qxf7
{[%clk 0:00:03.9]} 36... a2 {[%clk 0:00:45.5]} 37. Bd1 {[%clk 0:00:01.4]} 37...
a1=Q {[%clk 0:00:42.7]} 0-1

[Event "Late-Titled-Tuesday-Blitz-June-18-2024"]
[Site "Chess.com"]
[Date "2024.06.18"]
[Round "3"]
[White "PapaieDudu"]
[Black "BerlinDrawer"]
[Result "0-1"]
[WhiteElo "2363"]
[BlackElo "2568"]
[TimeControl "180+1"]
[EndTime "14:29:11 PDT"]
[Termination "BerlinDrawer won on time"]

1. Nf3 {[%clk 0:02:58.5]} 1... Nf6 {[%clk 0:02:59.4]} 2. d4 {[%clk 0:02:59.1]}
2... d5 {[%clk 0:02:58.8]} 3. c4 {[%clk 0:03:00]} 3... e6 {[%clk 0:02:58.6]} 4.
Nc3 {[%clk 0:03:00.9]} 4... Be7 {[%clk 0:02:57.8]} 5. Bg5 {[%clk 0:03:01.5]}
5... Nbd7 {[%clk 0:02:55.9]} 6. e3 {[%clk 0:03:01.9]} 6... O-O {[%clk
0:02:55.3]} 7. Bd3 {[%clk 0:03:02.4]} 7... dxc4 {[%clk 0:02:52.8]} 8. Bxc4
{[%clk 0:03:02.6]} 8... c5 {[%clk 0:02:52.9]} 9. O-O {[%clk 0:03:02.4]} 9... a6
{[%clk 0:02:52.9]} 10. a4 {[%clk 0:03:02.3]} 10... cxd4 {[%clk 0:02:50.5]} 11.
Nxd4 {[%clk 0:03:03.2]} 11... Ne5 {[%clk 0:02:47.8]} 12. Bb3 {[%clk 0:02:58.5]}
12... Bd7 {[%clk 0:02:46.9]} 13. h3 {[%clk 0:02:51.3]} 13... Nc6 {[%clk
0:02:46.7]} 14. Nf3 {[%clk 0:02:40.1]} 14... Qc7 {[%clk 0:02:38.7]} 15. Rc1
{[%clk 0:02:38.5]} 15... Rfd8 {[%clk 0:02:30.8]} 16. e4 {[%clk 0:02:25.8]} 16...
Be8 {[%clk 0:02:25]} 17. Qe2 {[%clk 0:02:25]} 17... Nh5 {[%clk 0:02:16.2]} 18.
Qe3 {[%clk 0:02:16.6]} 18... Bxg5 {[%clk 0:02:07]} 19. Qxg5 {[%clk 0:02:17.5]}
19... Nf4 {[%clk 0:02:06.3]} 20. e5 {[%clk 0:02:03.7]} 20... Nd3 {[%clk
0:01:40.1]} 21. Ne4 {[%clk 0:02:00.9]} 21... h6 {[%clk 0:01:23.3]} 22. Nf6+
{[%clk 0:01:55.3]} 22... Kh8 {[%clk 0:01:22.7]} 23. Qh4 {[%clk 0:01:45.1]} 23...
Nxc1 {[%clk 0:01:20.4]} 24. Rxc1 {[%clk 0:01:44.2]} 24... Qe7 {[%clk 0:01:16.2]}
25. Bc2 {[%clk 0:00:23.1]} 25... Nxe5 {[%clk 0:01:10.9]} 26. Nxe5 {[%clk
0:00:22.3]} 26... Qxf6 {[%clk 0:01:08.9]} 27. Qe4 {[%clk 0:00:21.5]} 27... g6
{[%clk 0:01:06.4]} 28. Ng4 {[%clk 0:00:16.2]} 28... Qg7 {[%clk 0:00:59]} 29. Qe3
{[%clk 0:00:02.8]} 29... h5 {[%clk 0:00:55.7]} 30. Be4 {[%clk 0:00:02.6]} 30...
hxg4 {[%clk 0:00:47.5]} 31. hxg4 {[%clk 0:00:01.7]} 31... Rac8 {[%clk
0:00:41.4]} 32. Ra1 {[%clk 0:00:01.7]} 32... Bc6 {[%clk 0:00:40.3]} 33. Bd3
{[%clk 0:00:01.2]} 33... Kg8 {[%clk 0:00:37.2]} 0-1

[Event "Late-Titled-Tuesday-Blitz-June-18-2024"]
[Site "Chess.com"]
[Date "2024.06.18"]
[Round "3"]
[White "maximnovik"]
[Black "BardArtem"]
[Result "0-1"]
[WhiteElo "2577"]
[BlackElo "2862"]
[TimeControl "180+1"]
[EndTime "14:29:12 PDT"]
[Termination "BardArtem won by checkmate"]

1. e4 {[%clk 0:03:00]} 1... e5 {[%clk 0:02:58.2]} 2. Nf3 {[%clk 0:02:59.4]} 2...
Nc6 {[%clk 0:02:58.7]} 3. Bc4 {[%clk 0:02:59.5]} 3... Nf6 {[%clk 0:02:56.8]} 4.
d3 {[%clk 0:02:59.3]} 4... h6 {[%clk 0:02:57.1]} 5. O-O {[%clk 0:02:58.9]} 5...
d6 {[%clk 0:02:57.7]} 6. a4 {[%clk 0:02:57.6]} 6... g5 {[%clk 0:02:58]} 7. Re1
{[%clk 0:02:56]} 7... g4 {[%clk 0:02:55.8]} 8. Nfd2 {[%clk 0:02:53]} 8... h5
{[%clk 0:02:53.5]} 9. c3 {[%clk 0:02:52.5]} 9... h4 {[%clk 0:02:52.9]} 10. Nf1
{[%clk 0:02:41]} 10... Bh6 {[%clk 0:02:51]} 11. Bxh6 {[%clk 0:02:28.3]} 11...
Rxh6 {[%clk 0:02:51.9]} 12. Nbd2 {[%clk 0:02:28.4]} 12... Be6 {[%clk 0:02:34.2]}
13. Bxe6 {[%clk 0:02:19.4]} 13... fxe6 {[%clk 0:02:35.1]} 14. a5 {[%clk
0:02:18.1]} 14... Qd7 {[%clk 0:02:32.3]} 15. a6 {[%clk 0:02:15.9]} 15... b6
{[%clk 0:02:32.3]} 16. b4 {[%clk 0:02:15.8]} 16... O-O-O {[%clk 0:02:31.9]} 17.
b5 {[%clk 0:02:12]} 17... Ne7 {[%clk 0:02:31.2]} 18. c4 {[%clk 0:02:10.8]} 18...
Ng6 {[%clk 0:02:27.9]} 19. Ne3 {[%clk 0:02:07.6]} 19... Nf4 {[%clk 0:02:25.3]}
20. Ndf1 {[%clk 0:02:05.8]} 20... Rg8 {[%clk 0:02:19.3]} 21. d4 {[%clk
0:02:05.4]} 21... exd4 {[%clk 0:02:15.9]} 22. Qxd4 {[%clk 0:02:04.8]} 22... e5
{[%clk 0:02:15.3]} 23. Qb2 {[%clk 0:01:48.4]} 23... g3 {[%clk 0:02:14.6]} 24.
fxg3 {[%clk 0:01:42.3]} 24... hxg3 {[%clk 0:02:15.5]} 25. Nxg3 {[%clk
0:01:42.4]} 25... Qh7 {[%clk 0:02:03.5]} 26. Nef1 {[%clk 0:01:38.2]} 26... Rxh2
{[%clk 0:01:20.7]} 27. Nxh2 {[%clk 0:01:27.4]} 27... Rxg3 {[%clk 0:01:20.9]} 28.
Ra3 {[%clk 0:01:10.3]} 28... Rxg2+ {[%clk 0:01:16.1]} 29. Qxg2 {[%clk
0:01:09.9]} 29... Nxg2 {[%clk 0:01:17]} 30. Kxg2 {[%clk 0:01:10.4]} 30... Nxe4
{[%clk 0:01:13.3]} 31. Rf3 {[%clk 0:00:39.2]} 31... Qg6+ {[%clk 0:01:05.7]} 32.
Kh1 {[%clk 0:00:23.4]} 32... Ng3+ {[%clk 0:01:05.7]} 33. Kg2 {[%clk 0:00:22.3]}
33... Ne2+ {[%clk 0:01:06.3]} 34. Kf2 {[%clk 0:00:21.7]} 34... Nf4 {[%clk
0:01:05.1]} 35. Rg3 {[%clk 0:00:15.7]} 35... Qc2+ {[%clk 0:01:03.3]} 36. Kg1
{[%clk 0:00:14.7]} 36... Ne2+ {[%clk 0:01:00.6]} 37. Rxe2 {[%clk 0:00:14.8]}
37... Qxe2 {[%clk 0:01:01.5]} 38. Rg8+ {[%clk 0:00:15.2]} 38... Kd7 {[%clk
0:01:01.8]} 39. Rg7+ {[%clk 0:00:15.5]} 39... Ke6 {[%clk 0:00:59]} 40. Rxc7
{[%clk 0:00:15.5]} 40... e4 {[%clk 0:00:56.3]} 41. Nf1 {[%clk 0:00:15.3]} 41...
e3 {[%clk 0:00:55.2]} 42. Rxa7 {[%clk 0:00:14.8]} 42... Qf2+ {[%clk 0:00:55.2]}
43. Kh1 {[%clk 0:00:14.6]} 43... Qxf1+ {[%clk 0:00:56.1]} 44. Kh2 {[%clk
0:00:14.7]} 44... e2 {[%clk 0:00:56.6]} 45. Ra8 {[%clk 0:00:13.6]} 45... e1=Q
{[%clk 0:00:53.5]} 46. Re8+ {[%clk 0:00:13.3]} 46... Kd7 {[%clk 0:00:54.1]} 47.
Re2 {[%clk 0:00:12.9]} 47... Qh1# {[%clk 0:00:52.4]} 0-1

[Event "Late-Titled-Tuesday-Blitz-June-18-2024"]
[Site "Chess.com"]
[Date "2024.06.18"]
[Round "3"]
[White "Arteler"]
[Black "ACollins05"]
[Result "0-1"]
[WhiteElo "2198"]
[BlackElo "2412"]
[TimeControl "180+1"]
[EndTime "14:29:12 PDT"]
[Termination "ACollins05 won by resignation"]

1. Nf3 {[%clk 0:03:00.9]} 1... b5 {[%clk 0:02:40.4]} 2. e3 {[%clk 0:02:45.6]}
2... a6 {[%clk 0:02:37.6]} 3. a4 {[%clk 0:02:40.8]} 3... b4 {[%clk 0:02:37.5]}
4. b3 {[%clk 0:02:34.6]} 4... Bb7 {[%clk 0:02:37.2]} 5. Bb2 {[%clk 0:02:33]}
5... e6 {[%clk 0:02:37.7]} 6. Be2 {[%clk 0:02:17.4]} 6... Nf6 {[%clk 0:02:36.9]}
7. O-O {[%clk 0:02:17.6]} 7... Be7 {[%clk 0:02:37.2]} 8. c4 {[%clk 0:02:05.7]}
8... O-O {[%clk 0:02:28.6]} 9. d4 {[%clk 0:02:02.5]} 9... c5 {[%clk 0:02:28.7]}
10. Nbd2 {[%clk 0:01:48.1]} 10... d5 {[%clk 0:02:28.1]} 11. Rc1 {[%clk
0:01:46.4]} 11... Nbd7 {[%clk 0:02:25.6]} 12. Rc2 {[%clk 0:01:38]} 12... Rc8
{[%clk 0:02:18.9]} 13. Qa1 {[%clk 0:01:35.5]} 13... dxc4 {[%clk 0:02:08.9]} 14.
Nxc4 {[%clk 0:01:31.2]} 14... Rc7 {[%clk 0:01:55.9]} 15. Rfc1 {[%clk 0:01:29.1]}
15... Qa8 {[%clk 0:01:55.6]} 16. Ncd2 {[%clk 0:01:15.4]} 16... Rfc8 {[%clk
0:01:53.3]} 17. Bf1 {[%clk 0:01:11.5]} 17... Bf8 {[%clk 0:01:47.1]} 18. dxc5
{[%clk 0:01:08.4]} 18... Rxc5 {[%clk 0:01:35.6]} 19. Rxc5 {[%clk 0:00:56.1]}
19... Rxc5 {[%clk 0:01:36.5]} 20. Bd4 {[%clk 0:00:50.7]} 20... Rxc1 {[%clk
0:01:34.6]} 21. Qxc1 {[%clk 0:00:49.4]} 21... Bd6 {[%clk 0:01:27.3]} 22. h3
{[%clk 0:00:46.4]} 22... a5 {[%clk 0:01:24.8]} 23. Bb5 {[%clk 0:00:43.2]} 23...
Bd5 {[%clk 0:01:19.5]} 24. Qf1 {[%clk 0:00:39.7]} 24... h6 {[%clk 0:01:18.3]}
25. Nc4 {[%clk 0:00:36.2]} 25... Bc7 {[%clk 0:01:12.7]} 26. Nfe5 {[%clk
0:00:33]} 26... Nxe5 {[%clk 0:01:08.3]} 27. Bxe5 {[%clk 0:00:31.2]} 27... Bxc4
{[%clk 0:01:03.6]} 28. Qa1 {[%clk 0:00:23.7]} 28... Bxe5 {[%clk 0:00:59]} 29.
Qxe5 {[%clk 0:00:23.1]} 29... Bxb3 {[%clk 0:00:56.9]} 30. Bd3 {[%clk 0:00:21.1]}
30... Bxa4 {[%clk 0:00:53.2]} 31. g4 {[%clk 0:00:17.6]} 31... Bc6 {[%clk
0:00:50.1]} 32. g5 {[%clk 0:00:15.4]} 32... hxg5 {[%clk 0:00:51]} 33. Qxg5
{[%clk 0:00:15.6]} 33... Be4 {[%clk 0:00:51.2]} 34. Be2 {[%clk 0:00:15.1]} 34...
b3 {[%clk 0:00:49.1]} 35. Qb5 {[%clk 0:00:14.1]} 35... a4 {[%clk 0:00:49.4]} 36.
h4 {[%clk 0:00:13.8]} 36... a3 {[%clk 0:00:48.8]} 37. Qxb3 {[%clk 0:00:13.3]}
37... a2 {[%clk 0:00:49.2]} 38. Qxe6 {[%clk 0:00:04.7]} 38... a1=Q+ {[%clk
0:00:48.1]} 39. Kh2 {[%clk 0:00:05.6]} 39... Qh1+ {[%clk 0:00:47.4]} 40. Kg3
{[%clk 0:00:06.5]} 40... Qg2+ {[%clk 0:00:47]} 41. Kf4 {[%clk 0:00:07.4]} 41...
Qxf2+ {[%clk 0:00:43.8]} 0-1

[Event "Late-Titled-Tuesday-Blitz-June-18-2024"]
[Site "Chess.com"]
[Date "2024.06.18"]
[Round "3"]
[White "RealPerangel"]
[Black "FairChess_on_YouTube"]
[Result "1/2-1/2"]
[WhiteElo "2761"]
[BlackElo "3093"]
[TimeControl "180+1"]
[EndTime "14:29:16 PDT"]
[Termination "Game drawn by agreement"]

1. e4 {[%clk 0:02:57.1]} 1... c5 {[%clk 0:02:59.3]} 2. g3 {[%clk 0:02:57.3]}
2... Nc6 {[%clk 0:02:59.2]} 3. Bg2 {[%clk 0:02:57]} 3... g6 {[%clk 0:02:59.3]}
4. Ne2 {[%clk 0:02:57.6]} 4... Bg7 {[%clk 0:02:59.7]} 5. c3 {[%clk 0:02:58.3]}
5... e5 {[%clk 0:02:59.7]} 6. d3 {[%clk 0:02:58.7]} 6... Nge7 {[%clk 0:03:00.1]}
7. Be3 {[%clk 0:02:59]} 7... b6 {[%clk 0:02:57.2]} 8. d4 {[%clk 0:02:59.4]} 8...
cxd4 {[%clk 0:02:56.8]} 9. cxd4 {[%clk 0:03:00.1]} 9... exd4 {[%clk 0:02:56.4]}
10. Nxd4 {[%clk 0:03:00.8]} 10... Ba6 {[%clk 0:02:56.8]} 11. Nc3 {[%clk
0:03:01.4]} 11... O-O {[%clk 0:02:56.2]} 12. Qa4 {[%clk 0:03:02]} 12... Nxd4
{[%clk 0:02:40.9]} 13. Bxd4 {[%clk 0:03:02.6]} 13... b5 {[%clk 0:02:22.3]} 14.
Qxa6 {[%clk 0:02:51]} 14... Bxd4 {[%clk 0:02:22.3]} 15. O-O {[%clk 0:02:51]}
15... b4 {[%clk 0:02:19]} 16. Nb5 {[%clk 0:02:50.9]} 16... Bxb2 {[%clk
0:02:18.1]} 17. Rab1 {[%clk 0:02:50.7]} 17... Bg7 {[%clk 0:02:02.2]} 18. Rfd1
{[%clk 0:02:43.1]} 18... Nc6 {[%clk 0:01:52.6]} 19. f4 {[%clk 0:02:39.3]} 19...
Qb6+ {[%clk 0:01:46.3]} 20. Qxb6 {[%clk 0:02:38.7]} 20... axb6 {[%clk
0:01:47.1]} 21. Rxd7 {[%clk 0:02:38.3]} 21... Rxa2 {[%clk 0:01:46.6]} 22. e5
{[%clk 0:02:38.8]} 22... Rc2 {[%clk 0:01:34.5]} 23. Bxc6 {[%clk 0:02:23.3]}
23... Rxc6 {[%clk 0:01:34.1]} 24. Rxb4 {[%clk 0:02:23.5]} 24... Ra8 {[%clk
0:01:30.9]} 25. Rbd4 {[%clk 0:02:20.4]} 25... Bf8 {[%clk 0:01:24.5]} 26. Rd2
{[%clk 0:02:03.8]} 26... Ra5 {[%clk 0:01:18.1]} 27. Nd6 {[%clk 0:01:56.9]} 27...
f6 {[%clk 0:01:02.2]} 28. e6 {[%clk 0:01:46.5]} 28... Ra1+ {[%clk 0:00:43.3]}
29. Kg2 {[%clk 0:01:45.2]} 29... Re1 {[%clk 0:00:37.2]} 30. f5 {[%clk
0:01:44.9]} 30... gxf5 {[%clk 0:00:20.8]} 31. Nxf5 {[%clk 0:01:43.3]} 31...
Rcxe6 {[%clk 0:00:21]} 32. Kh3 {[%clk 0:01:39.7]} 32... R1e5 {[%clk 0:00:19.9]}
33. g4 {[%clk 0:01:34.8]} 33... h5 {[%clk 0:00:20.1]} 34. Rb7 {[%clk 0:01:34.5]}
34... hxg4+ {[%clk 0:00:18.5]} 35. Kxg4 {[%clk 0:01:35.1]} 35... Re4+ {[%clk
0:00:19.1]} 36. Kh5 {[%clk 0:01:34.7]} 36... R6e5 {[%clk 0:00:16.6]} 37. Kg6
{[%clk 0:01:33.5]} 37... Rf4 {[%clk 0:00:08.9]} 38. Rg7+ {[%clk 0:01:26.8]}
38... Kh8 {[%clk 0:00:05.8]} 39. Rd8 {[%clk 0:01:16.2]} 39... Rg4+ {[%clk
0:00:04.9]} 40. Kxf6 {[%clk 0:01:16.4]} 40... Rxf5+ {[%clk 0:00:05.3]} 41. Kxf5
{[%clk 0:01:16.6]} 41... Rxg7 {[%clk 0:00:04.5]} 42. Rxf8+ {[%clk 0:01:16.7]}
42... Rg8 {[%clk 0:00:04]} 43. Rf6 {[%clk 0:01:15.3]} 43... Rb8 {[%clk
0:00:03.7]} 44. Rd6 {[%clk 0:01:11]} 44... b5 {[%clk 0:00:03.6]} 45. Rd3 {[%clk
0:01:11.6]} 45... b4 {[%clk 0:00:04]} 46. Rb3 {[%clk 0:01:09]} 46... Kg7 {[%clk
0:00:04.2]} 47. h4 {[%clk 0:01:08.3]} 47... Kh6 {[%clk 0:00:04.2]} 48. Ke4
{[%clk 0:01:07.9]} 48... Rg8 {[%clk 0:00:02.2]} 1/2-1/2